[Event "FIDE Open Sachove Univerzity QCC"]
[Site "Ceske Budejovice"]
[Date "2020.07.03"]
[Round "3.3"]
[White "Josko, Jiri"]
[Black "Titera, Libor"]
[Result "0-1"]
[ECO "D90"]
[WhiteElo "1649"]
[BlackElo "1843"]
[Annotator "NA"]
[PlyCount "50"]
[EventDate "2020.07.01"]
[EventType "swiss"]
[EventCountry "CZE"]
[SourceTitle "playchess.com"]
[Source "ChessBase"]
[SourceQuality "1"]
[TimeControl "40/5400+30:1800+30"]

1. d4 {[%emt 0:01:13]} c5 {[%emt 0:00:00]} 2. Nf3 {[%emt 0:03:08]} Nf6 {[%emt 0:00:56]} 3. c3 {[%emt 0:02:34]} cxd4 {[%emt 0:00:12]} 4. cxd4 {[%emt 0:01:30]} g6 {[%emt 0:01:38]} 5. Nc3 {[%emt 0:00:35]} d5 {[%emt 0:02:44]} 6. Bf4 {[%emt 0:05:33]} Bg7 {[%emt 0:02:36]} 7. e3 {[%emt 0:00:39]} O-O {[%emt 0:00:14]} 8. Bd3 {[%emt 0:01:06]} Bg4 {[%emt 0:04:21] D90: Grünfeld: 4 Nf3 Bg7 sidelines.} 9. Rc1 {[%emt 0:02:51] [#]} Qb6 $146 {[%emt 0:04:32]} ({Predecessor:} 9... Nh5 10. Bg5 Nc6 11. h3 Be6 12. g4 Nf6 13. Bxf6 exf6 14. Nh4 Re8 15. Kd2 Rc8 {0-1 (42) Gillet,N (1640)-Lehman,D (1770) Mont de Marsan 2006}) 10. O-O {[%emt 0:10:18]} Qxb2 {[%emt 0:04:56]} 11. Rc2 {[%emt 0:13:37]} Qb4 {[%emt 0:09:27]} 12. Nb5 {[%emt 0:06:55]} ({White should try} 12. Qd2 $14) 12... Nc6 {[%emt 0:02:59]} 13. a3 {[%emt 0:02:03]} Qa4 {[%emt 0:05:48]} 14. Qb1 {[%emt 0:05:12]} Bxf3 {[%emt 0:03:31]} 15. gxf3 {[%emt 0:00:38]} Rac8 {[%emt 0:04:25]} 16. Rfc1 {[%emt 0:05:24]} Nh5 {[%emt 0:13:12]} 17. Bg3 {[%emt 0:20:53]} Nxg3 {[%emt 0:00:11]} 18. fxg3 {[%emt 0:00:43]} Qa5 {[%emt 0:04:57]} 19. Rc5 {[%emt 0:01:37]} Qd2 $19 {[%emt 0:03:18]} 20. Re1 {[%emt 0:09:31]} Ne5 {[%emt 0:08:52]} 21. Re2 {[%emt 0:01:30]} Qxd3 {[%emt 0:00:32]} 22. Qxd3 {[%emt 0:01:18]} Nxd3 {[%emt 0:00:04]} 23. Rxd5 {[%emt 0:01:01]} a6 {[%emt 0:02:43]} 24. Na7 {[%emt 0:00:24]} Rc1+ {[%emt 0:02:31]} 25. Kg2 {[%emt 0:00:16]} Ra8 {[%emt 0:00:38]} 0-1

[Event "FIDE Open Sachove Univerzity QCC"]
[Site "Ceske Budejovice"]
[Date "2020.07.03"]
[Round "3.3"]
[White "Cipera, Josef"]
[Black "Krautschneider, Daniel Jan"]
[Result "1-0"]
[ECO "A48"]
[WhiteElo "1612"]
[BlackElo "1374"]
[Annotator "NA"]
[PlyCount "59"]
[EventDate "2020.07.01"]
[EventType "swiss"]
[EventCountry "CZE"]
[SourceTitle "playchess.com"]
[Source "ChessBase"]
[SourceQuality "1"]
[TimeControl "40/5400+30:1800+30"]

1. d4 {[%emt 0:00:00]} Nf6 {[%emt 0:00:00]} 2. Bf4 {[%emt 0:00:00]} g6 {[%emt 0:00:00]} 3. Nf3 {[%emt 0:00:00]} Bg7 {[%emt 0:00:00]} 4. e3 {[%emt 0:00:00]} d6 {[%emt 0:00:00]} 5. Bd3 {[%emt 0:00:22]} b6 {[%emt 0:00:12]} 6. O-O {[%emt 0:00:38]} Bb7 {[%emt 0:00:10]} 7. Nbd2 {[%emt 0:00:42]} Nbd7 {[%emt 0:00:08]} 8. c4 {[%emt 0:01:03]} c5 {[%emt 0:00:17]} 9. Rb1 {[%emt 0:01:14]} O-O {[%emt 0:00:41]} 10. d5 {[%emt 0:03:27]} e5 {[%emt 0:00:41]} 11. dxe6 {[%emt 0:01:01]} fxe6 {[%emt 0:00:27]} 12. Bxd6 {[%emt 0:01:02]} Re8 {[%emt 0:00:10]} 13. Bg3 {[%emt 0:02:09]} e5 {[%emt 0:00:14]} 14. e4 {[%emt 0:02:33]} Qc7 {[%emt 0:00:43]} 15. Qe2 {[%emt 0:02:28]} Rad8 {[%emt 0:00:07]} 16. Rbd1 {[%emt 0:02:28]} Nf8 {[%emt 0:04:21]} 17. Bc2 {[%emt 0:02:38]} Ne6 {[%emt 0:00:21]} 18. Bxe5 {[%emt 0:03:37]} Qe7 {[%emt 0:00:24]} 19. Bxf6 {[%emt 0:04:51]} Bxf6 {[%emt 0:02:24]} 20. e5 {[%emt 0:00:51]} Bg7 {[%emt 0:00:10]} 21. Rfe1 {[%emt 0:05:13]} Ng5 {[%emt 0:03:52]} 22. Ba4 {[%emt 0:08:59]} Rf8 {[%emt 0:01:59]} 23. Nxg5 {[%emt 0:01:15]} Qxg5 {[%emt 0:00:11]} 24. g3 {[%emt 0:04:42]} Qe7 {[%emt 0:07:22]} 25. f4 {[%emt 0:10:56]} Qf7 {[%emt 0:02:48]} 26. Ne4 {[%emt 0:02:47]} Bxe4 {[%emt 0:00:46]} 27. Qxe4 {[%emt 0:00:19]} Qe7 {[%emt 0:05:26]} 28. Rd5 {[%emt 0:04:43]} Kh8 {[%emt 0:03:16]} 29. Red1 {[%emt 0:00:24]} Qb7 {[%emt 0:04:02]} 30. Qd3 {[%emt 0:02:14]} 1-0

[Event "FIDE Open Sachove Univerzity QCC"]
[Site "Ceske Budejovice"]
[Date "2020.07.03"]
[Round "3.4"]
[White "Matlocha, Lubomir"]
[Black "Simacek, Vaclav"]
[Result "1/2-1/2"]
[ECO "B13"]
[WhiteElo "1646"]
[BlackElo "1816"]
[Annotator "NA RC"]
[PlyCount "119"]
[EventDate "2020.07.01"]
[EventType "swiss"]
[EventCountry "CZE"]
[SourceTitle "playchess.com"]
[Source "ChessBase"]
[SourceQuality "1"]
[TimeControl "40/5400+30:1800+30"]

{[%evp 8,119,31,32767,37,14,58,32767,39,32767,3,32767,32767,-27,-33,32767,32767,32767,32767,-28,-11,-8,0,0,32767,-6,0,32767,32767,32767,32767,32767,32767,21,15,32767,32767,32767,90,32767,32767,32767,32767,32767,32767,32767,32767,32767,32767,233,32767,32767,32767,32767,32767,32767,32767,32767,32767,32767,32767,32767,32767,32767,32767,32767,32767,32767,32767,32767,32767,32767,32767,32767,32767,32767,32767,32767,32767,32767,139,61,75,0,376,130,112,109,127,100,271,289,279,0,189,43,62,45,60,0,257,414,266,379,425,560,32767,224,237,254,289,0,0,0]} 1. d4 {[%emt 0:00:00]} Nf6 {[%emt 0:05:24]} 2. c4 {[%emt 0:00:29]} c5 {[%emt 0:00:09]} 3. e3 {[%emt 0:00:33]} cxd4 {[%emt 0:02:00]} 4. exd4 {[%emt 0:00:01]} d5 {[%emt 0:00:27]} 5. Nc3 {[%emt 0:01:47]} dxc4 {[%emt 0:01:38]} 6. Bxc4 {[%emt 0:00:02] B13: Caro-Kann: Exchange Variation and Panov-Botvinnik Attack.} Nc6 {[%emt 0:00:13]} 7. Nge2 {[%emt 0:03:39]} g6 {[%emt 0:06:17] [#]} 8. a3 $146 {[%emt 0:04:30]} ({Predecessor:} 8. O-O Bg7 9. Bf4 O-O 10. Re1 e6 11. d5 exd5 12. Nxd5 Nxd5 13. Qxd5 Qxd5 14. Bxd5 {½-½ (22) Fernandez,G-Hanson,A LSS email 2007}) 8... Bg7 {[%emt 0:00:32]} 9. O-O {[%emt 0:01:03]} O-O {[%emt 0:00:04]} 10. Be3 {[%emt 0:10:54]} Ng4 {[%emt 0:06:14]} 11. h3 {[%emt 0:13:35]} Nxe3 {[%emt 0:01:30]} 12. fxe3 {[%emt 0:00:02]} a6 {[%emt 0:04:32]} 13. b4 {[%emt 0:03:32]} b5 {[%emt 0:02:18]} 14. Bd5 {[%emt 0:04:16]} Bb7 {[%emt 0:00:21]} 15. Qb3 {[%emt 0:02:42]} e6 {[%emt 0:02:08]} 16. Bf3 $1 {[%emt 0:00:41]} Rb8 {[%emt 0:02:10]} 17. Ne4 {[%emt 0:08:11]} Ne7 {[%emt 0:06:29]} 18. Nc5 {[%emt 0:06:01]} Bxf3 {[%emt 0:00:58]} 19. Rxf3 {[%emt 0:00:54]} Rb6 {[%emt 0:03:01]} 20. Rd1 {[%emt 0:02:49]} Nf5 {[%emt 0:09:26]} 21. d5 {[%emt 0:17:44]} e5 {[%emt 0:09:31]} 22. Nc3 {[%emt 0:02:09]} Nd6 {[%emt 0:04:27]} 23. N3e4 {[%emt 0:02:33]} Nc4 {[%emt 0:08:53]} 24. a4 {[%emt 0:01:53]} Qc8 {[%emt 0:07:50]} 25. a5 {[%emt 0:02:35]} Rb8 {[%emt 0:00:11]} 26. Nd2 {[%emt 0:01:26]} Nd6 {[%emt 0:03:16]} 27. Rff1 {[%emt 0:00:50]} f5 {[%emt 0:00:52] [#]} 28. Rc1 $1 {[%emt 0:00:22]} Rf7 {[%emt 0:03:50]} 29. Ne6 {[%emt 0:00:33]} Qb7 {[%emt 0:01:35]} 30. Rc6 {[%emt 0:00:24]} Nc4 {[%emt 0:02:15]} 31. Nxc4 {[%emt 0:01:46]} bxc4 {[%emt 0:00:06]} 32. Qxc4 {[%emt 0:00:20]} Qxb4 {[%emt 0:00:13]} 33. Qxb4 {[%emt 0:00:26]} Rxb4 {[%emt 0:00:05]} 34. Rxa6 {[%emt 0:00:14]} Rfb7 {[%emt 0:01:28]} 35. Ra8+ {[%emt 0:01:36]} Rb8 {[%emt 0:00:18]} 36. Rxb8+ {[%emt 0:00:07]} Rxb8 {[%emt 0:00:04]} 37. Rc1 {[%emt 0:00:25]} Bf6 {[%emt 0:00:29]} 38. Rc6 {[%emt 0:00:43]} e4 {[%emt 0:02:00]} 39. Rb6 {[%emt 0:01:02]} Rc8 {[%emt 0:00:36]} 40. Rb1 {[%emt 0:02:03]} Ra8 {[%emt 0:00:49]} 41. Rb5 {[%emt 0:31:09]} Be5 {[%emt 0:32:20]} 42. Kf1 {[%emt 0:02:43]} Kf7 {[%emt 0:00:00]} 43. Nc5 {[%emt 0:00:00]} Ke7 {[%emt 0:00:00]} 44. a6 {[%emt 0:00:00]} (44. Nb7 $18) 44... Kd6 {[%emt 0:00:00]} 45. Nb7+ {[%emt 0:00:00]} (45. Ra5 $16) 45... Kd7 $2 {[%emt 0:00:00]} (45... Kc7 $11 {and Black is okay.}) 46. Ra5 $2 {[%emt 0:00:00]} (46. Rb6 $18 {has better winning chances.}) 46... Bc7 {[%emt 0:00:00]} 47. Ra2 {[%emt 0:00:00]} Bb6 {[%emt 0:00:00]} 48. Ke2 {[%emt 0:00:00]} Ba7 {[%emt 0:00:00]} 49. Rc2 {[%emt 0:00:00]} Bb6 {[%emt 0:00:00]} 50. Ra2 $2 {[%emt 0:00:00]} ({White has to play} 50. Rc6 $18 Ba7 51. g4) 50... Ba7 {[%emt 0:00:00]} 51. Ra3 {[%emt 0:00:00]} (51. Rb2 $18) 51... Rc8 $1 {[%emt 0:00:00]} 52. Kd2 {[%emt 0:00:00]} Rc4 {[%emt 0:00:00]} 53. Na5 {[%emt 0:00:00]} ({White should try} 53. Ra5 $14) 53... Rc7 $2 {[%emt 0:00:00]} (53... Rc5 $11 {and Black has nothing to worry.}) 54. Nc6 {[%emt 0:00:00]} Kd6 {[%emt 0:00:00]} 55. Ra5 {[%emt 0:00:00]} g5 {[%emt 0:00:00]} 56. g3 {[%emt 0:00:00]} h5 {[%emt 0:00:00]} 57. Ra1 {[%emt 0:00:00]} (57. h4 $142) 57... Kxd5 {[%emt 0:00:00]} 58. Nxa7 {[%emt 0:00:00]} Rxa7 {[%emt 0:00:00]} 59. Ra5+ $2 {[%emt 0:00:00]} (59. Kc3 $18) 59... Kc4 $1 {[%emt 0:00:27]} 60. Ra1 $11 {[%emt 0:01:37]} 1/2-1/2

[Event "FIDE Open Sachove Univerzity QCC"]
[Site "Ceske Budejovice"]
[Date "2020.07.03"]
[Round "3.4"]
[White "Dudkova, Josefina"]
[Black "Predota, Vit"]
[Result "1-0"]
[ECO "C28"]
[WhiteElo "1447"]
[BlackElo "1233"]
[Annotator "NA RC"]
[PlyCount "103"]
[EventDate "2020.07.01"]
[EventType "swiss"]
[EventCountry "CZE"]
[SourceTitle "playchess.com"]
[Source "ChessBase"]
[SourceQuality "1"]
[TimeControl "40/5400+30:1800+30"]

1. e4 {[%emt 0:00:00]} e5 {[%emt 0:00:00]} 2. Nc3 {[%emt 0:00:00]} Nf6 {[%emt 0:00:00]} 3. Bc4 {[%emt 0:00:00]} Nc6 {[%emt 0:00:02]} 4. d3 {[%emt 0:00:05]} Bc5 {[%emt 0:00:36]} 5. Bg5 {[%emt 0:00:43]} Bd4 {[%emt 0:00:42]} 6. Qd2 {[%emt 0:05:08]} h6 {[%emt 0:01:23]} 7. Bh4 {[%emt 0:00:26]} g5 {[%emt 0:00:53]} 8. Bg3 {[%emt 0:00:30]} Nh5 {[%emt 0:01:20]} 9. Nge2 {[%emt 0:03:12]} Nxg3 {[%emt 0:02:15]} 10. fxg3 {[%emt 0:00:47]} d6 {[%emt 0:02:46]} 11. Rf1 {[%emt 0:03:55]} Rf8 {[%emt 0:01:16]} 12. Nxd4 {[%emt 0:01:48]} Nxd4 {[%emt 0:00:17]} 13. Nd5 {[%emt 0:02:17]} f5 {[%emt 0:02:55]} 14. c3 {[%emt 0:06:51]} c6 {[%emt 0:01:36]} 15. Ne3 {[%emt 0:06:48]} b5 {[%emt 0:02:23]} 16. cxd4 {[%emt 0:02:07]} bxc4 {[%emt 0:01:02]} 17. dxc4 {[%emt 0:02:46]} f4 {[%emt 0:00:54]} 18. gxf4 {[%emt 0:02:01]} exd4 {[%emt 0:02:24]} 19. Nc2 {[%emt 0:12:49]} c5 {[%emt 0:03:16]} 20. g3 {[%emt 0:09:56]} Rb8 {[%emt 0:05:54]} 21. b3 {[%emt 0:03:30]} Qe7 {[%emt 0:04:25]} 22. Qe2 {[%emt 0:03:18]} gxf4 {[%emt 0:07:50]} 23. Rxf4 {[%emt 0:01:45]} Rxf4 {[%emt 0:00:43]} 24. gxf4 {[%emt 0:00:17]} d3 {[%emt 0:09:15]} 25. Qxd3 {[%emt 0:05:32]} Bf5 {[%emt 0:01:31]} 26. O-O-O {[%emt 0:02:38]} Bxe4 {[%emt 0:02:34]} 27. Qxd6 {[%emt 0:00:50]} Bxc2 {[%emt 0:01:15]} 28. Qxe7+ {[%emt 0:00:11]} Kxe7 {[%emt 0:00:22]} 29. Kxc2 {[%emt 0:00:05]} Ke6 {[%emt 0:00:51]} 30. Rd5 {[%emt 0:00:18]} Rf8 {[%emt 0:01:40]} 31. Rxc5 {[%emt 0:03:33]} Rxf4 {[%emt 0:00:32]} 32. Rc6+ {[%emt 0:00:17]} Ke5 {[%emt 0:00:27]} 33. Rxh6 {[%emt 0:00:12]} Kd4 {[%emt 0:00:16]} 34. Kb2 {[%emt 0:02:56]} a5 {[%emt 0:00:30]} 35. Ka3 {[%emt 0:01:12]} Kc5 {[%emt 0:01:05]} 36. Rh5+ {[%emt 0:00:39]} Kb6 {[%emt 0:00:13]} 37. Ka4 {[%emt 0:00:57]} Rf2 {[%emt 0:00:19]} 38. a3 {[%emt 0:00:23]} Ra2 {[%emt 0:00:41]} 39. h4 {[%emt 0:00:32]} Rh2 {[%emt 0:01:51]} 40. c5+ {[%emt 0:00:44]} Ka6 {[%emt 0:03:15]} 41. Rh6+ {[%emt 0:30:13]} Kb7 {[%emt 0:30:14]} 42. Kxa5 {[%emt 0:00:08]} Rh3 {[%emt 0:00:22]} 43. Ka4 {[%emt 0:00:30]} Re3 {[%emt 0:00:25]} 44. b4 {[%emt 0:00:26]} Kc7 {[%emt 0:00:25]} 45. b5 {[%emt 0:00:34]} Kb7 {[%emt 0:00:09]} 46. Rh7+ {[%emt 0:01:11]} Kb8 {[%emt 0:00:17]} 47. h5 {[%emt 0:00:31]} Re4+ {[%emt 0:00:12]} 48. Ka5 {[%emt 0:00:16]} Rc4 {[%emt 0:00:25]} 49. c6 {[%emt 0:00:23]} Rc5 {[%emt 0:00:30]} 50. Kb6 {[%emt 0:01:04]} Rxc6+ {[%emt 0:00:34]} 51. bxc6 {[%emt 0:00:15]} Kc8 {[%emt 0:00:20]} 52. Rh8# 1-0

[Event "FIDE Open Sachove Univerzity QCC"]
[Site "Ceske Budejovice"]
[Date "2020.07.03"]
[Round "3.5"]
[White "Veverka, Vladimir"]
[Black "Straka, Zdenek"]
[Result "1/2-1/2"]
[ECO "E50"]
[WhiteElo "1644"]
[BlackElo "1812"]
[Annotator "NA"]
[PlyCount "85"]
[EventDate "2020.07.01"]
[EventType "swiss"]
[EventCountry "CZE"]
[SourceTitle "playchess.com"]
[Source "ChessBase"]
[SourceQuality "1"]
[TimeControl "40/5400+30:1800+30"]

1. d4 {[%emt 0:00:00]} e6 {[%emt 0:07:46]} 2. c4 {[%emt 0:00:42]} Bb4+ {[%emt 0:00:22]} 3. Nc3 {[%emt 0:01:05]} c5 {[%emt 0:00:19]} 4. e3 {[%emt 0:01:26]} Nf6 {[%emt 0:00:39]} 5. Nf3 {[%emt 0:01:38]} O-O {[%emt 0:05:08]} 6. Be2 {[%emt 0:01:25]} d5 {[%emt 0:01:50]} 7. dxc5 {[%emt 0:07:08]} dxc4 {[%emt 0:05:55]} 8. Qxd8 {[%emt 0:01:15]} Rxd8 {[%emt 0:00:34]} 9. O-O {[%emt 0:00:59]} Bxc5 $11 {[%emt 0:01:48]} 10. Bxc4 {[%emt 0:01:39]} Nc6 {[%emt 0:02:28]} 11. b3 {[%emt 0:01:56]} b6 {[%emt 0:03:01]} 12. Bb2 {[%emt 0:00:57]} Bb7 {[%emt 0:00:10]} 13. Rfd1 {[%emt 0:01:10]} Rac8 {[%emt 0:04:23]} 14. Ne2 {[%emt 0:01:19]} Ne4 {[%emt 0:17:14]} 15. Ned4 {[%emt 0:01:51]} Nxd4 {[%emt 0:05:54]} 16. Nxd4 {[%emt 0:00:45]} Bd5 {[%emt 0:08:29]} 17. Bxd5 {[%emt 0:04:13]} Rxd5 {[%emt 0:00:24]} 18. Ne2 {[%emt 0:02:28]} Rcd8 {[%emt 0:00:34]} 19. Rxd5 {[%emt 0:03:22]} Rxd5 {[%emt 0:00:17]} 20. Nc3 {[%emt 0:01:37]} Nxc3 {[%emt 0:02:13]} 21. Bxc3 {[%emt 0:01:01]} Rd3 {[%emt 0:01:35]} 22. Be1 {[%emt 0:01:17]} Kf8 {[%emt 0:01:04]} 23. Kf1 {[%emt 0:00:33]} Ke7 {[%emt 0:00:16]} 24. Ke2 {[%emt 0:00:24]} Rd7 {[%emt 0:02:58]} 25. Rd1 {[%emt 0:00:51]} Rxd1 {[%emt 0:01:40]} 26. Kxd1 {[%emt 0:00:12]} a6 {[%emt 0:00:34]} 27. Bc3 {[%emt 0:01:37]} g6 {[%emt 0:00:31]} 28. Kd2 {[%emt 0:01:02]} b5 {[%emt 0:00:27]} 29. Kd3 {[%emt 0:00:34]} Kd6 {[%emt 0:00:35]} 30. Bd4 {[%emt 0:01:01]} Bxd4 {[%emt 0:12:19]} 31. Kxd4 {[%emt 0:00:42]} e5+ {[%emt 0:00:21]} 32. Kd3 {[%emt 0:00:47]} f5 {[%emt 0:01:59]} 33. a3 {[%emt 0:06:32]} Kd5 {[%emt 0:01:20]} 34. f3 {[%emt 0:00:52]} e4+ {[%emt 0:03:56]} 35. fxe4+ {[%emt 0:01:01]} fxe4+ {[%emt 0:00:02]} 36. Kc3 {[%emt 0:00:41]} a5 {[%emt 0:00:43]} 37. a4 {[%emt 0:00:41]} b4+ {[%emt 0:00:46]} 38. Kd2 {[%emt 0:00:40]} Ke5 {[%emt 0:00:11]} 39. Ke2 {[%emt 0:00:20]} Kf5 {[%emt 0:00:07]} 40. h3 {[%emt 0:00:20]} h5 {[%emt 0:00:26]} 41. g3 {[%emt 0:30:37]} g5 {[%emt 0:31:12]} 42. Kf2 {[%emt 0:00:10]} g4 {[%emt 0:02:25]} 43. h4 {[%emt 0:01:48]} 1/2-1/2

[Event "FIDE Open Sachove Univerzity QCC"]
[Site "Ceske Budejovice"]
[Date "2020.07.03"]
[Round "3.5"]
[White "Roubal, Matyas"]
[Black "Stavova, Marketa"]
[Result "1-0"]
[ECO "C44"]
[WhiteElo "1443"]
[BlackElo "1219"]
[Annotator "NA"]
[PlyCount "65"]
[EventDate "2020.07.01"]
[EventType "swiss"]
[EventCountry "CZE"]
[SourceTitle "playchess.com"]
[Source "ChessBase"]
[SourceQuality "1"]
[TimeControl "40/5400+30:1800+30"]

1. e4 {[%emt 0:00:00]} e5 {[%emt 0:00:00]} 2. Nf3 {[%emt 0:00:00]} Nc6 {[%emt 0:00:16]} 3. d4 {[%emt 0:00:00]} exd4 {[%emt 0:00:36]} 4. Bc4 {[%emt 0:00:00]} Bc5 {[%emt 0:01:25]} 5. c3 {[%emt 0:00:00]} Bb6 {[%emt 0:01:41]} 6. cxd4 {[%emt 0:00:12]} Nge7 {[%emt 0:01:26]} 7. Nc3 {[%emt 0:00:37]} d6 {[%emt 0:01:19]} 8. O-O {[%emt 0:00:43]} O-O {[%emt 0:00:50]} 9. Be3 {[%emt 0:01:37]} Bd7 {[%emt 0:02:26]} 10. d5 {[%emt 0:02:22]} Ne5 {[%emt 0:02:05]} 11. Nxe5 {[%emt 0:00:17]} dxe5 {[%emt 0:00:27]} 12. Bxb6 {[%emt 0:00:10]} axb6 {[%emt 0:01:34]} 13. Qd2 {[%emt 0:03:16]} Ng6 {[%emt 0:02:30]} 14. Rfe1 {[%emt 0:04:51]} Qe7 {[%emt 0:05:13]} 15. Rad1 {[%emt 0:02:42]} Nh4 {[%emt 0:01:53]} 16. Re3 {[%emt 0:03:32]} Qf6 {[%emt 0:03:09]} 17. Qe2 {[%emt 0:07:00]} Ng6 {[%emt 0:06:44]} 18. g3 {[%emt 0:03:38]} Qg5 {[%emt 0:03:02]} 19. Kh1 {[%emt 0:01:58]} Bh3 {[%emt 0:05:30]} 20. Rg1 {[%emt 0:03:21]} Kh8 {[%emt 0:06:53]} 21. f3 {[%emt 0:03:09]} f5 {[%emt 0:03:35]} 22. Rd3 {[%emt 0:01:35]} Qh5 {[%emt 0:03:45]} 23. exf5 {[%emt 0:03:44]} Bxf5 {[%emt 0:01:46]} 24. Ne4 {[%emt 0:00:20]} Bxe4 {[%emt 0:01:15]} 25. Qxe4 {[%emt 0:00:08]} Ra4 {[%emt 0:00:47]} 26. Ra3 {[%emt 0:12:06]} Rxa3 {[%emt 0:00:45]} 27. bxa3 {[%emt 0:00:04]} Rxf3 {[%emt 0:00:44]} 28. Be2 {[%emt 0:00:37]} Qg5 {[%emt 0:12:31]} 29. Qxf3 {[%emt 0:00:29]} Qd2 {[%emt 0:00:41]} 30. Rf1 {[%emt 0:00:06]} h6 {[%emt 0:00:26]} 31. Bd3 {[%emt 0:00:28]} Kh7 {[%emt 0:00:58]} 32. Bxg6+ {[%emt 0:00:06]} Kxg6 {[%emt 0:00:07]} 33. Qf5# {[%emt 0:00:03]} 1-0

[Event "FIDE Open Sachove Univerzity QCC"]
[Site "Ceske Budejovice"]
[Date "2020.07.03"]
[Round "3.6"]
[White "Zelbova, Lada"]
[Black "Valtr, Filip"]
[Result "1-0"]
[ECO "A46"]
[WhiteElo "1637"]
[BlackElo "1784"]
[Annotator "NA"]
[PlyCount "81"]
[EventDate "2020.07.01"]
[EventType "swiss"]
[EventCountry "CZE"]
[SourceTitle "playchess.com"]
[Source "ChessBase"]
[SourceQuality "1"]
[TimeControl "40/5400+30:1800+30"]

1. d4 {[%emt 0:00:00]} Nf6 {[%emt 0:00:00]} 2. Nf3 {[%emt 0:00:00]} e6 {[%emt 0:00:00]} 3. Bf4 {[%emt 0:00:30]} c5 {[%emt 0:00:57]} 4. e3 {[%emt 0:05:34]} Nc6 {[%emt 0:01:06]} 5. c3 {[%emt 0:01:13]} a6 {[%emt 0:04:30]} 6. a4 {[%emt 0:02:19]} Be7 {[%emt 0:00:51]} 7. h3 {[%emt 0:04:24]} O-O {[%emt 0:04:12]} 8. Bd3 {[%emt 0:00:10]} d5 {[%emt 0:05:01]} 9. Nbd2 {[%emt 0:01:31]} Bd7 {[%emt 0:10:57]} 10. O-O {[%emt 0:01:24]} Rc8 {[%emt 0:04:05]} 11. Re1 {[%emt 0:11:38]} h6 {[%emt 0:13:47]} 12. Qb1 {[%emt 0:02:04]} Kh8 {[%emt 0:16:16]} 13. Qa2 {[%emt 0:01:05]} Ra8 {[%emt 0:06:32]} 14. Qb1 {[%emt 0:04:34]} c4 {[%emt 0:05:05]} 15. Bc2 {[%emt 0:03:33]} b5 {[%emt 0:01:07]} 16. e4 {[%emt 0:06:29]} g5 {[%emt 0:04:42]} 17. Bxg5 {[%emt 0:14:08]} hxg5 {[%emt 0:00:39]} 18. Nxg5 {[%emt 0:00:32]} Nh5 {[%emt 0:00:24]} 19. Qd1 {[%emt 0:09:42]} Ng7 {[%emt 0:00:39]} 20. Ngf3 {[%emt 0:00:52]} f5 {[%emt 0:04:42]} 21. exd5 {[%emt 0:03:16]} exd5 {[%emt 0:00:11]} 22. Qe2 {[%emt 0:08:02]} Bg5 {[%emt 0:01:57]} 23. Nxg5 {[%emt 0:00:36]} Qxg5 {[%emt 0:00:03]} 24. Nf3 {[%emt 0:00:29]} Qh5 {[%emt 0:01:05]} 25. Qd2 {[%emt 0:03:11]} Rae8 {[%emt 0:00:54]} 26. Ne5 {[%emt 0:00:55]} Nxe5 {[%emt 0:01:00]} 27. dxe5 {[%emt 0:00:11]} Be6 {[%emt 0:01:14]} 28. Qd4 {[%emt 0:01:04]} f4 {[%emt 0:01:13]} 29. Kh2 {[%emt 0:03:33]} Nf5 {[%emt 0:04:02]} 30. Bxf5 {[%emt 0:01:16]} Rxf5 {[%emt 0:00:05]} 31. Rh1 {[%emt 0:02:46]} Qe2 {[%emt 0:01:04]} 32. axb5 {[%emt 0:01:53]} axb5 {[%emt 0:00:19]} 33. Rhe1 {[%emt 0:01:27]} Qh5 {[%emt 0:01:46]} 34. Rh1 {[%emt 0:01:23]} Rg8 {[%emt 0:00:25]} 35. Ra6 {[%emt 0:00:52]} Qg5 {[%emt 0:02:05]} 36. Rg1 {[%emt 0:01:01]} Qe7 {[%emt 0:01:10]} 37. Ra7 {[%emt 0:01:01]} Qf8 {[%emt 0:01:15]} 38. Qb6 {[%emt 0:01:39]} Rxe5 {[%emt 0:00:44]} 39. Qd4 {[%emt 0:01:33]} Qf6 {[%emt 0:00:38]} 40. Re1 {[%emt 0:00:47]} Rf5 {[%emt 0:00:18]} 41. Rxe6 {[%emt 0:30:11]} 1-0

[Event "FIDE Open Sachove Univerzity QCC"]
[Site "Ceske Budejovice"]
[Date "2020.07.03"]
[Round "3.7"]
[White "Dusanek, Michal"]
[Black "Berka, Lubos"]
[Result "1-0"]
[ECO "B00"]
[WhiteElo "1500"]
[BlackElo "1718"]
[Annotator "NA"]
[PlyCount "61"]
[EventDate "2020.07.01"]
[EventType "swiss"]
[EventCountry "CZE"]
[SourceTitle "playchess.com"]
[Source "ChessBase"]
[SourceQuality "1"]
[TimeControl "40/5400+30:1800+30"]

1. e4 {[%emt 0:00:00]} b6 {[%emt 0:00:23]} 2. d4 {[%emt 0:01:07]} Bb7 {[%emt 0:00:06]} 3. Bd3 {[%emt 0:02:53]} Nf6 {[%emt 0:00:42]} 4. Nd2 {[%emt 0:02:49]} e6 {[%emt 0:00:58]} 5. a3 {[%emt 0:06:20]} c5 {[%emt 0:00:27]} 6. Ngf3 {[%emt 0:04:27]} c4 {[%emt 0:05:57]} 7. Bxc4 {[%emt 0:02:44]} Nxe4 {[%emt 0:00:12]} 8. Nxe4 {[%emt 0:01:00]} Bxe4 {[%emt 0:00:06]} 9. Bf4 {[%emt 0:01:10]} Be7 {[%emt 0:08:03]} 10. O-O {[%emt 0:02:19]} O-O {[%emt 0:04:19]} 11. Re1 {[%emt 0:00:43]} Bb7 {[%emt 0:00:37]} 12. c3 {[%emt 0:00:49]} d5 {[%emt 0:05:57]} 13. Bd3 {[%emt 0:01:22]} Nd7 {[%emt 0:00:27]} 14. Qc2 {[%emt 0:02:03]} h6 {[%emt 0:05:09]} 15. Re3 {[%emt 0:04:54]} Nf6 {[%emt 0:02:44]} 16. Rae1 {[%emt 0:02:05]} Ng4 {[%emt 0:03:17]} 17. R3e2 {[%emt 0:04:05]} Bd6 {[%emt 0:01:25]} 18. Ne5 {[%emt 0:02:27]} Nxe5 {[%emt 0:00:23]} 19. Bxe5 {[%emt 0:00:36]} Bxe5 {[%emt 0:00:09]} 20. Rxe5 {[%emt 0:00:09]} Qc7 {[%emt 0:05:14]} 21. R1e3 {[%emt 0:03:19]} Rae8 {[%emt 0:01:03]} 22. f4 {[%emt 0:02:11]} Bc8 {[%emt 0:01:11]} 23. Qf2 {[%emt 0:01:34]} f6 {[%emt 0:06:50]} 24. Rh5 {[%emt 0:01:28]} e5 {[%emt 0:03:12]} 25. fxe5 {[%emt 0:04:47]} fxe5 {[%emt 0:00:48]} 26. Qg3 {[%emt 0:00:17]} Qf7 {[%emt 0:10:12]} 27. Rhxe5 {[%emt 0:04:57]} Rxe5 {[%emt 0:02:39]} 28. Rxe5 {[%emt 0:01:19]} g5 {[%emt 0:04:42]} 29. Qe3 {[%emt 0:02:03]} a6 {[%emt 0:02:43]} 30. Re7 {[%emt 0:03:05]} Qh5 {[%emt 0:02:50]} 31. Bh7+ {[%emt 0:03:28]} 1-0